bitfinex-derivatives/quotes_SOLF0:USTF0_20240906
["timestamp","ask_amount","ask_price","bid_price","bid_amount"]
[1725648786397,3.9781,125.77,125.72,30.59]
[1725648786594,37.19257839,125.82,125.72,30.59]
[1725648786898,3.9783,125.77,125.72,30.59]
[1725648787094,3.9783,125.77,125.72,34.5694]
[1725648787300,3.9783,125.77,125.72,30.59]
[1725648787491,3.9786,125.76,125.72,30.59]
[1725648788093,3.9786,125.76,125.72,34.5696]
[1725648788399,3.9781,125.77,125.73,3.9793]
[1725648788597,6.60257839,125.82,125.74,31.8766]
[1725648788785,3.9773,125.8,125.76,30.59]
[1725648788986,3.9773,125.8,125.76,34.56286418]
[1725648789589,3.9769,125.81,125.78,30.59]
[1725648789788,3.9769,125.81,125.76,5.28206418]
[1725648789789,30.59,125.9,125.8,30.59]
[1725648789991,1.70164463,125.89,125.82,30.59]
[1725648790295,3.9755,125.85,125.82,30.59]
[1725648793096,3.9759,125.84,125.82,30.59]
[1725648793598,2.6003,125.9,125.82,30.59]
[1725648793791,3.9761,125.83,125.82,30.59]
[1725648793997,2.6003,125.9,125.82,30.59]
[1725648794195,0.39714279,125.89,125.82,30.59]
[1725648794499,3.976,125.84,125.82,30.59]
[1725648794802,2.6003,125.9,125.82,30.59]
[1725648795004,0.39702729,125.89,125.82,30.59]
[1725648795590,0.39702729,125.89,125.78,30.59]
[1725648795591,30.59,125.88,125.78,30.59]
[1725648795790,0.39702729,125.87,125.78,30.59]
[1725648795991,3.9767,125.82,125.78,30.59]
[1725648796303,30.59,125.88,125.78,30.59]
[1725648796498,0.39717339,125.87,125.78,30.59]
[1725648797392,3.9769,125.81,125.78,30.59]
[1725648799098,10.5486,125.9,125.8,30.59]
[1725648799099,3.9766,125.82,125.8,30.59]
[1725648799299,41.1386,125.9,125.8,30.59]
[1725648799497,0.3969099,125.89,125.8,30.59]
[1725648799900,3.9763,125.83,125.8,30.59]
[1725648801592,3.9765,125.82,125.8,30.59]
[1725648801799,38.5386,125.89,125.8,30.59]
[1725648802000,0.39693174,125.88,125.8,30.59]
[1725648802196,0.39693262,125.87,125.8,30.59]
[1725648802697,0.39695485,125.86,125.8,30.59]
[1725648802901,3.9763,125.83,125.8,30.59]
[1725648803100,0.39693262,125.87,125.8,30.59]
[1725648803301,0.39686272,125.86,125.8,31.9132]
[1725648803606,3.9762,125.83,125.8,31.9132]
[1725648804103,3.9762,125.83,125.81,24.43]
[1725648804298,0.39693262,125.87,125.81,24.43]
[1725648804506,0.39692061,125.86,125.8,1.3232]
[1725648805003,3.9764,125.83,125.8,1.3232]
[1725648805601,0.39693262,125.87,125.81,24.43]
[1725648805808,0.39693851,125.86,125.81,24.43]
[1725648806201,3.9758,125.84,125.81,24.43]
[1725648806999,3.9757,125.85,125.83,24.43]
[1725648807305,29.80526556,125.91,125.83,24.43]
[1725648807505,29.80526556,125.91,125.84,24.43]
[1725648807506,0.3969561,125.89,125.84,24.43]
[1725648807902,0.3969561,125.88,125.8,1.3232]
[1725648808107,26.2130561,125.88,125.79,24.43]
[1725648808308,0.3969561,125.87,125.79,24.43]
[1725648808809,3.9768,125.81,125.79,24.43]
[1725648809010,3.98999093,125.83,125.79,24.43]
[1725648809214,24.43,125.86,125.79,24.43]
[1725648809400,0.39684974,125.85,125.79,24.43]
[1725648809905,3.9769,125.81,125.79,24.43]
[1725648810306,3.91720701,125.83,125.79,24.43]
[1725648810509,24.43,125.86,125.79,24.43]
[1725648810808,0.39660355,125.85,125.79,24.43]
[1725648811202,24.43,125.86,125.79,24.43]
[1725648811409,0.3965745,125.85,125.79,24.43]
[1725648811912,3.977,125.81,125.79,24.43]
[1725648812310,3.9771,125.8,125.77,27.1167]
[1725648812606,4.2165,125.88,125.77,27.1167]
[1725648812810,3.977,125.81,125.78,24.43]
[1725648813601,4.05563694,125.83,125.78,24.43]
[1725648813805,24.43,125.85,125.77,27.1167]
[1725648814006,3.9773,125.8,125.77,27.1167]
[1725648814809,4.01457623,125.83,125.79,24.43]
[1725648815012,32.3808,125.86,125.79,24.43]
[1725648815203,0.39662709,125.85,125.79,24.43]
[1725648815407,3.9763,125.83,125.79,24.43]
[1725648815611,3.99667,125.83,125.79,24.43]
[1725648815811,3.9768,125.82,125.79,24.43]
[1725648816203,4.03566579,125.83,125.79,24.43]
[1725648816403,3.9766,125.82,125.79,24.43]
[1725648817915,3.9079347,125.83,125.79,24.43]
[1725648818215,24.43,125.86,125.79,24.43]
[1725648818408,3.9769,125.81,125.79,24.43]
[1725648818803,3.921232,125.83,125.79,24.43]
[1725648819008,3.9762,125.83,125.79,24.43]
[1725648819304,3.93396457,125.83,125.79,24.43]
[1725648819611,3.9766,125.82,125.79,24.43]
[1725648820007,3.9769,125.81,125.79,24.43]
[1725648820211,24.43,125.86,125.79,24.43]
[1725648820503,3.9769,125.81,125.79,24.43]
[1725648822321,4.03622298,125.83,125.77,27.1167]
[1725648822620,0.39665468,125.82,125.77,27.1167]
[1725648822919,3.9772,125.8,125.77,27.1167]
[1725648823814,3.9774,125.79,125.77,2.6867]
[1725648824322,3.95783813,125.83,125.77,1.3252]
[1725648824510,24.43,125.8,125.71,1.3731]
[1725648824718,1.78167632,125.82,125.71,1.3731]
[1725648824719,24.43,125.78,125.71,1.3731]
[1725648825219,0.39684216,125.77,125.71,1.3731]
[1725648825711,3.9792,125.74,125.71,1.3731]
[1725648826407,3.9794,125.73,125.71,1.3731]
[1725648826815,24.43,125.78,125.71,1.3731]
[1725648827012,3.9793,125.73,125.71,1.3731]
[1725648828215,3.9792,125.74,125.71,1.3731]
[1725648829010,3.9794,125.73,125.71,1.3731]
[1725648829207,24.43,125.78,125.71,1.3731]
[1725648829413,24.43,125.78,125.69,7.90075621]
[1725648829414,3.9808,125.69,125.66,24.43]
[1725648829608,3.9808,125.69,125.66,28.48558274]
[1725648829819,3.9808,125.69,125.66,32.46708274]
[1725648831312,3.9809,125.68,125.66,32.46708274]
[1725648831620,3.9809,125.68,125.66,24.43]
[1725648832211,28.3458586,125.73,125.63,2.6019]
[1725648832418,24.43,125.73,125.64,28.41639247]
[1725648832912,28.36223169,125.73,125.64,28.41639247]
[1725648833619,3.93223169,125.73,125.65,24.43]
[1725648833816,3.9807,125.69,125.65,28.4117]
[1725648834121,1.2921,125.75,125.67,24.43]
[1725648834122,25.7221,125.75,125.67,24.43]
[1725648834420,3.9806,125.69,125.67,24.43]
[1725648838115,5.29696943,125.75,125.68,24.43]
[1725648838321,5.29696943,125.75,125.7,24.43]
[1725648838521,3.9799,125.71,125.7,24.43]
[1725648838720,5.29696943,125.75,125.7,24.43]
[1725648838915,1.2921,125.75,125.7,24.43]
[1725648839513,1.3155,125.76,125.7,24.43]
[1725648839821,3.9792,125.74,125.7,28.4101]
[1725648840329,3.9793,125.73,125.7,24.43]
[1725648841223,3.9793,125.73,125.7,28.4103]
[1725648841427,3.9792,125.74,125.7,28.4103]
[1725648841737,24.43,125.79,125.7,28.4103]
[1725648841917,0.39668811,125.78,125.71,3.9799]
[1725648842230,0.39668811,125.78,125.72,24.43]
[1725648842431,3.9785,125.76,125.72,24.43]
[1725648842728,4.1676,125.81,125.74,24.43]
[1725648842921,0.39654489,125.8,125.74,24.43]
[1725648843132,3.978,125.78,125.74,28.4089]
[1725648843425,4.1676,125.81,125.74,24.43]
[1725648843824,3.978,125.78,125.74,24.43]
[1725648844024,4.1676,125.81,125.74,24.43]
[1725648844220,0.39650594,125.8,125.74,24.43]
[1725648844421,0.39650594,125.8,125.72,25.7344]
[1725648844625,24.43,125.79,125.72,1.3044]
[1725648845021,3.9787,125.75,125.72,1.3044]
[1725648845420,3.9792,125.74,125.7,28.44147537]
[1725648845623,24.43,125.77,125.69,2.7446]
[1725648845932,24.43,125.77,125.69,6.72582412]
[1725648845933,3.9795,125.73,125.69,6.72582412]
[1725648846625,3.9795,125.73,125.69,2.7446]
[1725648847023,3.9797,125.72,125.69,2.7446]
[1725648847429,28.37028113,125.75,125.67,24.43]
[1725648847824,28.37028113,125.75,125.68,3.9808]
[1725648848025,3.94028113,125.75,125.68,24.43]
[1725648848223,3.98,125.71,125.68,24.43]
[1725648848426,4.04501018,125.73,125.67,24.43]
[1725648848630,3.9804,125.7,125.67,24.43]
[1725648848931,24.43,125.75,125.67,28.4112]
[1725648849229,3.9796,125.73,125.68,24.43]
[1725648849433,3.9382947,125.75,125.68,28.40890799]
[1725648849732,3.9798,125.72,125.68,24.43]
[1725648849932,3.95939769,125.73,125.68,24.43]
[1725648850136,24.43,125.75,125.67,24.43]
[1725648850428,24.43,125.73,125.65,24.43]
[1725648850830,3.88374548,125.72,125.66,3.89409789]
[1725648851031,24.43,125.73,125.65,24.43]
[1725648851231,24.43,125.73,125.65,28.43279816]
[1725648851531,24.43,125.73,125.65,32.41449816]
[1725648851736,4.00518718,125.72,125.65,32.41449816]
[1725648852031,3.9805,125.7,125.65,32.41449816]
[1725648852234,4.00518718,125.72,125.65,32.41449816]
[1725648852438,3.9805,125.7,125.66,3.9815]
[1725648852930,4.0962,125.74,125.65,28.43279816]
[1725648852931,3.9801,125.71,125.67,28.411]
[1725648853633,3.9803,125.7,125.67,28.411]
[1725648853828,8.09764424,125.74,125.68,24.43]
[1725648854130,8.09764424,125.74,125.68,28.4109]
[1725648854131,3.9798,125.72,125.68,28.4109]
[1725648855035,1.3867,125.74,125.68,28.4109]
[1725648856238,3.98,125.71,125.68,28.4109]
[1725648856432,1.3867,125.74,125.68,28.4109]
[1725648856933,3.9798,125.72,125.68,28.4109]
[1725648858040,3.98,125.71,125.68,24.43]
[1725648858234,1.3867,125.74,125.62,4.1023]
[1725648858235,24.43,125.73,125.62,4.1023]
[1725648858437,24.43,125.7,125.62,28.5323]
[1725648858644,3.982,125.65,125.62,28.5323]
[1725648859726,3.9817,125.66,125.62,32.5149]
[1725648860128,24.43,125.7,125.62,28.5323]
[1725648860940,3.9818,125.66,125.62,32.5151]
[1725648862442,3.9818,125.66,125.63,3.9824]
[1725648863539,3.9814,125.67,125.63,3.9824]
[1725648863739,1.3196,125.71,125.63,3.9824]
[1725648863941,3.9818,125.66,125.62,32.515]
[1725648865040,1.3196,125.71,125.62,28.5323]
[1725648865244,1.3196,125.71,125.64,24.43]
[1725648865545,24.43,125.7,125.62,28.5323]
[1725648865933,3.9817,125.66,125.62,28.5323]
[1725648866133,24.43,125.7,125.62,1.4133]
[1725648866745,24.43,125.7,125.61,24.43]
[1725648867139,24.43,125.68,125.61,24.43]
[1725648867344,1.4127,125.67,125.61,24.43]
[1725648867844,1.4127,125.67,125.61,28.413]
[1725648868234,24.43,125.7,125.64,3.982]
[1725648868441,25.7496,125.71,125.62,24.43]
[1725648868743,3.9814,125.67,125.63,3.9823]
[1725648868941,1.3196,125.71,125.62,24.43]
[1725648869239,5.2998,125.71,125.64,24.43]
[1725648869444,1.3196,125.71,125.64,28.412]
[1725648869840,3.9803,125.7,125.65,3.9818]
[1725648870242,1.3196,125.71,125.61,24.43]
[1725648870441,25.7496,125.71,125.63,24.43]
[1725648870842,29.7297,125.71,125.66,3.9813]
[1725648871045,25.7496,125.71,125.64,28.3881828]
[1725648872140,1.4127,125.72,125.66,24.43]
[1725648872944,1.4127,125.72,125.68,3.9807]
[1725648873543,1.4127,125.72,125.69,3.9806]
[1725648873844,3.9791,125.74,125.69,3.9806]
[1725648874440,31.08553644,125.75,125.69,3.9806]
[1725648874946,10.63433644,125.75,125.69,24.43]
[1725648875945,10.63433644,125.75,125.71,3.9799]
[1725648876145,75.14612718,125.77,125.71,24.43]
[1725648876346,4.0188,125.79,125.72,24.43]
[1725648876549,1.3626,125.79,125.74,28.4089]
[1725648876948,5.3402,125.79,125.74,28.4089]
[1725648877450,1.3626,125.79,125.74,28.4089]
[1725648877850,3.9777,125.78,125.74,28.4089]
[1725648879648,25.7997,125.82,125.72,1.4048]
[1725648879850,1.3697,125.82,125.75,24.43]
[1725648880446,24.43,125.8,125.72,25.8348]
[1725648880953,1.2954,125.79,125.72,25.8348]
[1725648881451,1.2954,125.79,125.73,3.9793]
[1725648881452,3.9783,125.77,125.73,3.9793]
[1725648881652,3.9783,125.77,125.72,25.8348]
[1725648882149,3.9783,125.77,125.72,29.8142]
[1725648882358,4.04491713,125.76,125.7,24.43]
[1725648882657,24.43,125.77,125.7,3.9801]
[1725648882847,3.9792,125.74,125.7,3.9801]
[1725648883254,4.06521934,125.76,125.7,3.9801]
[1725648883449,3.9795,125.73,125.7,3.9801]
[1725648884249,25.7628,125.78,125.7,24.43]
[1725648884655,3.979,125.74,125.71,3.9798]
[1725648884853,25.7628,125.78,125.7,24.43]
[1725648885251,3.9793,125.75,125.71,3.9802]
[1725648885754,3.9794,125.74,125.71,3.9802]
[1725648886751,24.43,125.72,125.52,248.9313]
[1725648886951,1.292,125.73,125.61,24.43]
[1725648887252,1.292,125.73,125.67,24.43]
[1725648887955,1.292,125.73,125.66,8.01260686]
[1725648888359,3.9812,125.69,125.66,3.9817]
[1725648888850,1.292,125.73,125.65,34.52094348]
[1725648889050,3.9807,125.7,125.65,34.52094348]
[1725648889246,3.90496831,125.71,125.64,30.61]
[1725648889454,1.292,125.73,125.62,35.87719049]
[1725648889648,30.61,125.7,125.62,35.87719049]
[1725648889957,34.68346791,125.7,125.63,3.9828]
[1725648890352,3.9822,125.66,125.63,3.9828]
[1725648890555,3.9822,125.66,125.55,115.97959806]
[1725648890556,30.61,125.66,125.55,115.97959806]
[1725648890750,3.9837,125.61,125.55,147.86759806]
[1725648890951,3.9837,125.61,125.57,3.9846]
[1725648891153,4.04011312,125.63,125.56,3.94484059]
[1725648891352,3.984,125.6,125.56,3.94484059]
[1725648891657,2.5836,125.65,125.57,30.61]
[1725648891957,3.90497761,125.64,125.57,30.61]
[1725648892452,2.5836,125.65,125.57,34.60586521]
[1725648892657,3.9827,125.64,125.59,30.61]
[1725648893157,3.9821,125.66,125.62,3.983]
[1725648893349,4.01460081,125.68,125.62,3.983]
[1725648893756,2.7464,125.69,125.62,3.91773376]
[1725648893956,2.7464,125.69,125.61,30.61]
[1725648894454,3.9818,125.67,125.63,3.9826]
[1725648894857,3.9818,125.67,125.61,34.60953312]
[1725648895060,3.9818,125.67,125.63,3.9827]
[1725648896660,3.9818,125.67,125.64,3.9825]
[1725648896854,6.68418119,125.69,125.61,34.60953312]
[1725648896855,3.9814,125.68,125.61,34.60953312]
[1725648897057,3.9814,125.68,125.63,30.61]
[1725648897260,3.9814,125.68,125.64,3.9823]
[1725648897461,3.9817,125.67,125.64,3.9823]
[1725648898657,3.9814,125.68,125.65,3.9822]
[1725648898855,31.9983,125.72,125.63,34.6414095]
[1725648899050,3.9811,125.69,125.66,3.9817]
[1725648899953,3.9813,125.68,125.65,3.9821]
[1725648901058,36.06556905,125.72,125.63,34.6414095]
[1725648901059,36.06556905,125.72,125.66,3.9819]
[1725648901451,3.9812,125.69,125.66,3.9819]
[1725648901857,36.06556905,125.72,125.63,34.6414095]
[1725648902555,3.9811,125.69,125.63,34.6414095]
[1725648903351,36.06556905,125.72,125.63,34.6414095]
[1725648903859,3.9818,125.67,125.64,3.9824]
[1725648904262,3.9818,125.67,125.63,34.6414095]
[1725648904659,3.9818,125.67,125.65,3.9822]
[1725648904963,3.9814,125.68,125.63,34.6414095]
[1725648905162,36.06556905,125.72,125.63,34.6414095]
[1725648905454,3.9818,125.67,125.63,34.6414095]
[1725648905655,3.9818,125.67,125.64,3.9824]
[1725648906358,36.06556905,125.72,125.63,34.6414095]
[1725648906359,3.9813,125.68,125.65,3.982]
[1725648906865,36.06556905,125.72,125.65,3.982]
[1725648907566,3.9816,125.68,125.65,3.982]
[1725648908160,30.61,125.68,125.58,30.61]
[1725648908368,30.61,125.68,125.59,1.3372]
[1725648908563,3.9835,125.61,125.59,1.3372]
[1725648908869,3.92727559,125.65,125.59,1.3372]
[1725648909462,3.92727559,125.65,125.58,6.69250007]
[1725648909463,30.61,125.64,125.54,30.61]
[1725648909665,3.99937589,125.63,125.54,30.61]
[1725648909867,3.9837,125.61,125.57,3.9845]
[1725648912573,3.9837,125.61,125.58,7.89362554]
[1725648912772,3.9833,125.62,125.58,3.90922554]
[1725648913067,3.9833,125.62,125.56,30.61]
[1725648913271,3.9833,125.62,125.58,3.9842]
[1725648913469,3.9833,125.62,125.58,3.9606365]
[1725648913666,3.9835,125.61,125.56,30.61]
[1725648913968,3.9835,125.61,125.58,3.9842]
[1725648914162,30.61,125.64,125.58,7.95440133]
[1725648914569,3.92915227,125.63,125.57,3.9846]
[1725648914769,3.984,125.6,125.58,4.02918445]
[1725648915164,3.984,125.6,125.57,3.9846]
[1725648915165,34.53915227,125.63,125.56,3.985]
[1725648915968,30.61,125.61,125.53,2.7278]
[1725648916476,3.9852,125.56,125.53,5.2941]
[1725648916863,3.9852,125.56,125.53,1.3082]
[1725648917266,1.2946,125.6,125.53,31.9182]
[1725648917472,1.2946,125.6,125.53,33.2237]
[1725648917774,3.9847,125.58,125.55,3.9854]
[1725648918575,3.9841,125.6,125.55,30.61]
[1725648918877,3.9841,125.6,125.56,30.61]
[1725648919072,3.9833,125.62,125.59,3.9841]
[1725648919671,3.9831,125.63,125.6,3.9836]
[1725648919878,1.3198,125.64,125.6,3.9836]
[1725648920083,1.3198,125.64,125.58,4.07775282]
[1725648920285,3.9836,125.61,125.59,3.984]
[1725648920581,1.3198,125.64,125.59,7.88047244]
[1725648920781,3.9835,125.62,125.59,3.984]
[1725648921083,1.3198,125.64,125.59,3.984]
[1725648921381,6.66253685,125.65,125.59,3.98415004]
[1725648921382,2.6748,125.65,125.59,3.98415004]
[1725648921583,2.6748,125.65,125.53,2.6137]
[1725648921584,1.301,125.67,125.58,30.61]
[1725648921787,1.301,125.67,125.59,3.9283552]
[1725648921981,3.9836,125.61,125.59,3.9283552]
[1725648922183,3.9836,125.61,125.56,30.61]
[1725648922382,30.61,125.66,125.56,30.61]
[1725648922580,3.9829,125.63,125.56,30.61]
[1725648922781,30.61,125.66,125.56,30.61]
[1725648923176,3.9832,125.62,125.56,30.61]
[1725648923788,3.9831,125.63,125.56,30.61]
[1725648923989,1.301,125.67,125.6,30.61]
[1725648924279,3.9824,125.65,125.6,34.68628541]
[1725648924482,3.9824,125.65,125.61,1.3859]
[1725648924677,3.9824,125.65,125.62,3.983]
[1725648925181,1.3526,125.69,125.63,3.9826]
[1725648925586,3.9821,125.66,125.63,3.9826]
[1725648925988,1.3526,125.69,125.64,3.9825]
[1725648926175,3.9818,125.67,125.64,3.9825]
[1725648926582,1.3526,125.69,125.64,3.9825]
[1725648926782,1.3526,125.69,125.62,30.61]
[1725648927275,3.9821,125.66,125.63,3.9828]
[1725648927584,1.3526,125.69,125.63,3.9828]
[1725648928281,1.3526,125.69,125.62,30.61]
[1725648928479,30.61,125.67,125.61,1.3859]
[1725648928681,30.61,125.67,125.58,30.61]
[1725648928980,3.9834,125.62,125.59,4.03666624]
[1725648929180,3.9834,125.62,125.59,8.02066624]
[1725648929380,3.9834,125.62,125.59,3.984]
[1725648929786,3.9834,125.62,125.59,7.91213397]
[1725648929984,3.9834,125.62,125.59,3.984]
[1725648932882,3.9835,125.61,125.58,38.55829279]
[1725648933290,5.2641449,125.65,125.58,34.57399279]
[1725648933588,3.9834,125.62,125.58,34.57399279]
[1725648933886,1.323,125.66,125.59,30.61]
[1725648934088,25.8226,125.69,125.61,28.4532]
[1725648934586,24.47,125.66,125.57,24.47]
[1725648934789,3.98622377,125.65,125.57,24.47]
[1725648935086,3.9843,125.59,125.56,25.8567]
[1725648935683,3.984,125.6,125.57,3.9846]
[1725648935882,4.06353332,125.63,125.57,3.9846]
[1725648936485,3.984,125.6,125.57,3.9846]
[1725648937984,4.06353332,125.63,125.56,3.985]
[1725648938182,34.6122,125.64,125.56,3.985]
[1725648938386,38.51488217,125.64,125.56,3.985]
[1725648939486,3.9843,125.59,125.56,3.985]
[1725648939679,30.62,125.62,125.55,5.3844]
[1725648940190,3.9844,125.59,125.55,5.3844]
[1725648940691,3.9845,125.58,125.55,5.3844]
[1725648942598,3.9845,125.58,125.56,3.985]
[1725648942790,38.51488217,125.64,125.55,32.0191]
[1725648943096,0.39875343,125.63,125.57,3.9847]
[1725648943289,3.984,125.6,125.57,3.9847]
[1725648943794,38.51488217,125.64,125.55,32.0191]
[1725648943992,31.01878423,125.63,125.53,30.62]
[1725648944294,0.39878423,125.62,125.54,3.9855]
[1725648944481,3.9849,125.57,125.53,30.62]
[1725648944886,3.9849,125.57,125.54,3.9857]
[1725648945289,3.9849,125.57,125.53,30.62]
[1725648945998,3.9849,125.57,125.55,3.9854]
[1725648946402,30.62,125.61,125.53,30.62]
[1725648946693,0.39914192,125.6,125.51,34.57013157]
[1725648946897,30.62,125.59,125.51,34.57013157]
[1725648947096,2.646,125.58,125.49,30.62]
[1725648947397,3.9462,125.58,125.49,30.62]
[1725648947699,3.9856,125.55,125.49,30.62]
[1725648947897,4.04489667,125.57,125.52,3.9863]
[1725648948091,4.04489667,125.57,125.51,4.05007886]
[1725648948298,3.9462,125.58,125.52,3.9862]
[1725648949096,3.9462,125.58,125.52,30.62]
[1725648949295,3.9852,125.56,125.52,30.62]
[1725648950395,3.985,125.57,125.52,30.62]
[1725648950597,3.985,125.57,125.55,3.9852]
[1725648951193,3.9852,125.56,125.54,3.9856]
[1725648951397,30.62,125.6,125.51,4.05007886]
[1725648951601,30.62,125.6,125.53,3.986]
[1725648952302,3.9852,125.56,125.53,3.986]
[1725648952800,30.62,125.61,125.54,3.9855]
[1725648952999,30.62,125.61,125.52,34.60158737]
[1725648953705,3.985,125.57,125.54,3.9856]
[1725648953904,30.62,125.61,125.52,34.60158737]
[1725648954099,3.985,125.57,125.54,3.9857]
[1725648954601,30.62,125.61,125.54,3.9857]
[1725648954800,30.62,125.59,125.5,30.62]
[1725648955001,7.9672,125.61,125.51,3.92833152]
[1725648955002,31.9155,125.58,125.51,3.92833152]
[1725648955196,2.7496,125.57,125.5,8.05406318]
[1725648955395,2.7496,125.57,125.5,4.06716318]
[1725648955607,30.62,125.56,125.48,33.2979]
[1725648955803,3.9862,125.53,125.5,3.987]
[1725648956102,2.7496,125.57,125.48,2.6779]
[1725648956312,3.9853,125.56,125.53,3.9858]
[1725648958109,3.9853,125.56,125.54,3.9857]
[1725648958310,3.9853,125.56,125.52,24.5]
[1725648958703,3.9853,125.56,125.53,3.9859]
[1725648959211,1.2955,125.58,125.53,3.9859]
[1725648959212,3.9855,125.55,125.53,3.9859]
[1725648960103,2.6024,125.6,125.54,24.5]
[1725648960506,3.9846,125.58,125.55,3.9853]
[1725648960707,2.6024,125.6,125.55,3.96093513]
[1725648960911,1.3891,125.63,125.56,24.5]
[1725648961108,1.3891,125.63,125.56,28.53150948]
[1725648961311,3.984,125.6,125.56,32.51640948]
[1725648961512,3.984,125.6,125.56,28.53150948]
[1725648961708,1.3891,125.63,125.56,28.53150948]
[1725648962712,0.398952,125.62,125.56,28.53150948]
[1725648962909,1.3891,125.63,125.56,32.51660948]
[1725648963114,1.3891,125.63,125.56,28.53150948]
[1725648963313,3.9844,125.59,125.56,28.53150948]
[1725648963917,3.9844,125.59,125.56,4.03150948]
[1725648964113,24.5,125.57,125.34,229.0]
[1725648964416,24.5,125.55,125.47,24.5]
[1725648964615,0.39900836,125.54,125.47,24.5]
[1725648964920,24.5,125.53,125.47,4.0265597]
[1725648965118,0.39900836,125.52,125.45,24.5]
[1725648965422,0.39900836,125.52,125.45,28.56567519]
[1725648966018,24.5,125.53,125.45,28.56567519]
[1725648966315,3.9879,125.48,125.45,28.56567519]
[1725648966524,24.5,125.53,125.45,28.56567519]
[1725648966722,3.9879,125.48,125.45,28.56567519]
[1725648968317,24.5,125.53,125.45,28.56567519]
[1725648968520,3.988,125.47,125.45,28.56567519]
[1725648968730,28.53215961,125.5,125.42,1.3381]
[1725648968915,24.5,125.5,125.43,3.97391907]
[1725648969117,24.5,125.5,125.34,32.477]
[1725648969118,24.5,125.48,125.4,24.5]
[1725648969311,24.5,125.48,125.41,4.07923072]
[1725648969623,3.9485,125.49,125.38,28.4906]
[1725648969624,3.9901,125.41,125.38,28.4906]
[1725648969919,24.5,125.46,125.38,24.5]
[1725648970117,24.5,125.48,125.4,24.5]
[1725648970331,24.5,125.46,125.36,29.93097332]
[1725648970622,3.9904,125.4,125.36,25.8673]
[1725648971122,3.99,125.41,125.36,29.83563436]
[1725648971317,3.99,125.41,125.37,3.9909]
[1725648971516,3.99,125.41,125.36,29.83563436]
[1725648971720,3.99,125.41,125.38,3.9907]
[1725648972422,30.65,125.47,125.37,34.6411]
[1725648972620,30.65,125.45,125.36,5.33563436]
[1725648973015,15.98527769,125.49,125.38,3.9905]
[1725648973016,3.9896,125.42,125.38,3.9905]
[1725648973426,3.9901,125.41,125.37,34.641]
[1725648973725,30.65,125.48,125.37,30.65]
[1725648973930,0.39915833,125.47,125.37,30.65]
[1725648974222,3.9898,125.42,125.37,30.65]
[1725648974426,3.9898,125.42,125.36,5.33563436]
[1725648974427,3.9898,125.42,125.39,30.65]
[1725648974629,3.9894,125.43,125.39,30.65]
[1725648975222,3.9894,125.43,125.4,3.9902]
[1725648976323,30.65,125.48,125.39,34.6403]
[1725648976524,0.39903939,125.47,125.39,30.65]
[1725648976826,3.9893,125.43,125.4,3.99]
[1725648977626,3.9897,125.42,125.39,34.6403]
[1725648977929,30.65,125.48,125.39,30.65]
[1725648978128,0.39903872,125.47,125.38,3.9907]
[1725648978431,30.65,125.46,125.37,30.65]
[1725648978631,3.9904,125.4,125.37,30.65]
[1725648979122,30.65,125.46,125.37,30.65]
[1725648979324,0.39925492,125.45,125.37,30.65]